[Event "European Women-ch 2023"]
[Site "Petrovac"]
[Date "2023.03.18"]
[Round "1.1"]
[White "Khotenashvili, Bela"]
[Black "Lehaci, Miruna-Daria"]
[Result "1/2-1/2"]
[ECO "D02"]
[WhiteElo "2491"]
[BlackElo "2202"]
[Annotator "TA"]
[PlyCount "102"]
[EventDate "2023.03.15"]
[EventType "swiss"]
[EventCountry "MNE"]
[SourceTitle "playchess.com"]
[Source "ChessBase"]
[SourceQuality "1"]
[TimeControl "40/5400+30:1800+30"]

{[%evp 9,102,27,24,16,8,13,16,16,29,7,18,6,33,12,28,3,12,-28,-21,-58,58,48,58,73,55,0,0,2,28,33,23,0,20,6,114,105,181,213,338,306,469,329,332,349,323,0,3,-200,-191,-189,-183,-185,-184,-184,-189,-195,-179,-158,-159,-238,-236,-229,-228,-238,-179,-230,-135,-123,-43,-43,-43,-43,-43,-43,-43,-43,-43,-43,-43,-43,-43,-43,-43,-53,0,0,0,0,0,0,0,0,0,0,0]} 1. g3 {[%emt 0:00:03]} d5 {[%emt 0:00:27]} 2. Nf3 {[%emt 0:00:12]} Nc6 {[%emt 0:00:07]} 3. d4 {[%emt 0:01:17]} Bf5 {[%emt 0:00:06]} 4. Bg2 {[%emt 0:00:09]} Nb4 {[%emt 0:01:45]} 5. Na3 {[%emt 0:00:27][%cal Bb1a3,Ba3c2,Bc2e1,Be1d3][%mdl 32]} e6 {[%emt 0:00:19]} 6. c3 {[%emt 0:03:00] D02: 1 d4 d5 2 Nf3 sidelines, including 2...Nf6 3 g3 and 2...Nf6 3 Bf4.} Nc6 {[%emt 0:00:50]} 7. Nc2 {[%emt 0:00:07]} Be7 {[%emt 0:01:03]} 8. O-O {[%emt 0:09:46]} Be4 {[%emt 0:04:40]} 9. Nce1 {[%emt 0:02:40]} Nf6 {[%emt 0:06:45]} 10. Nd3 {[%emt 0:07:56] [#]} Nd7 $146 {[%emt 0:05:53]} ({Predecessor:} 10... O-O 11. Bf4 h6 12. Qd2 Bd6 13. Bxd6 cxd6 14. Bh3 Rb8 15. Nh4 Bh7 16. Bg2 Ne4 {0-1 Mikhalevski,V (2516)-Van Foreest,J (2584) Titled Tuesday intern Qual2 11th April blitz 2017 (2)}) 11. a4 {[%emt 0:12:12]} Na5 {[%emt 0:15:20]} 12. Re1 {[%emt 0:09:58]} b6 {[%emt 0:05:59]} 13. Bf1 {[%emt 0:04:36]} c5 {[%emt 0:07:43]} 14. dxc5 {[%emt 0:07:36]} Nxc5 {[%emt 0:06:10]} ({Black should try} 14... bxc5 $15 15. Nd2 O-O) 15. Nd4 $1 $14 {[%emt 0:03:55]} Ncb7 {[%emt 0:06:57]} 16. b4 {[%emt 0:09:54]} Nc4 {[%emt 0:00:24]} 17. Nc6 {[%emt 0:00:35]} (17. f3 $14 Bg6 18. e4 dxe4 19. fxe4) 17... Qc7 $11 {[%emt 0:01:57]} 18. Nxe7 {[%emt 0:03:54]} Qxe7 {[%emt 0:00:07]} 19. f3 $36 {[%emt 0:04:14][%mdl 2048] White has good play.} Bg6 {[%emt 0:02:41]} 20. Nf4 {[%emt 0:02:56]} Rd8 {[%emt 0:05:31]} 21. a5 {[%emt 0:06:44]} (21. Qd4 $5 {[%cal Rd4g7]} Qf6 22. e4 $14) 21... b5 {[%emt 0:05:25]} (21... Nbd6 $11) 22. Qd4 $16 {[%emt 0:01:25][%csl LRa7,LRg7]} Qf6 {[%emt 0:07:47]} (22... Nbd6 $16) 23. Qxa7 $18 {[%emt 0:01:04]} Qxc3 {[%emt 0:00:36]} (23... Nbd6 {was called for.} 24. Be3 Bc2) 24. Qxb7 {[%emt 0:00:49]} Qxe1 {[%emt 0:04:56]} (24... O-O $142) 25. Qxb5+ {[%emt 0:00:05]} Kf8 {[%emt 0:00:45]} 26. Qc5+ {[%emt 0:02:28]} (26. Bb2 Qd2 27. Qc5+ Kg8 $11) 26... Kg8 {[%emt 0:00:27] [#]} 27. Bb2 {[%emt 0:03:42] Inhibits Qc3.} Qd2 $11 {[%emt 0:00:11]} 28. Qd4 {[%emt 0:00:39]} (28. Bd4 $11 {and White stays safe.} e5 29. Nxg6 hxg6 30. Bf2) 28... Qxb2 $19 {[%emt 0:00:12]} 29. Qxb2 {[%emt 0:00:22]} Nxb2 {[%emt 0:00:05]} 30. b5 {[%emt 0:01:16]} Nc4 {[%emt 0:05:07] Strongly threatening ...Kf8.} 31. b6 {[%emt 0:01:00][%cal Oe2e4]} Kf8 {[%emt 0:01:28]} 32. b7 {[%emt 0:00:40]} Ke7 {[%emt 0:00:45] ...Kd6 would be deadly.} 33. a6 {[%emt 0:00:08]} Nd6 {[%emt 0:01:12][%cal Od6b7]} 34. e4 {[%emt 0:01:06]} (34. h4 $17) 34... dxe4 {[%emt 0:03:05]} 35. Nxg6+ {[%emt 0:00:04]} hxg6 {[%emt 0:00:03]} (35... fxg6 $2 36. fxe4 Rd7 37. Rb1 Nxb7 38. axb7) 36. fxe4 {[%emt 0:00:03]} e5 {[%emt 0:00:48][%cal Oe7d7]} (36... Nxe4 37. a7 $18) 37. Ra5 {[%emt 0:01:16]} (37. Rb1 $142) 37... f6 {[%emt 0:00:11]} ({Don't do} 37... Nxe4 38. a7 $18 (38. Rxe5+ Kd6 $14) (38. Rxe5+ Kd6 $14)) (37... Kd7 $19 38. Rc5 Rb8 39. Bb5+ Nxb5 40. Rxb5 Kc6) 38. Bb5 $17 {[%emt 0:00:36] [#]} Nxb5 {[%emt 0:01:10]} (38... Nxe4 $2 39. a7 $18) (38... Nxb7 $1 $17 39. axb7 Rd1+ 40. Kg2 Rd2+ 41. Kg1 Rb8) 39. Rxb5 $15 {[%emt 0:00:01]} Rd1+ {[%emt 0:00:09]} 40. Kg2 {[%emt 0:00:00]} Ra1 {[%emt 0:00:00]} (40... Rd2+ {is more complex.} 41. Kf3 Ra2 42. b8=Q Rxb8 43. Rxb8 Rxa6 44. Rb7+ Kf8) 41. b8=Q {[%emt 0:03:18]} Rxb8 {[%emt 0:02:42]} 42. Rxb8 {[%emt 0:00:02]} Rxa6 {[%emt 0:00:09][%mdl 4096] Endgame Hoping for ...Ra2+. KR-KR} 43. Rb7+ {[%emt 0:00:06]} Kf8 {[%emt 0:00:16] White must now prevent ...Ra2+.} 44. Rb8+ {[%emt 0:00:58]} Kf7 {[%emt 0:00:07]} 45. Rb7+ {[%emt 0:00:03]} Kg8 {[%emt 0:01:20] ...Ra2+ is the strong threat.} 46. h4 {[%emt 0:04:07]} f5 {[%emt 0:04:41]} ({Better is} 46... Ra2+ $15 47. Kf3 Ra8) 47. Rb5 $11 {[%emt 0:02:24] The position is equal.} Re6 {[%emt 0:01:28]} 48. Kf3 {[%emt 0:00:11]} Kf7 {[%emt 0:00:16]} 49. g4 {[%emt 0:04:16]} fxg4+ {[%emt 0:07:10]} 50. Kxg4 {[%emt 0:00:02]} Kf6 {[%emt 0:00:05]} 51. Rb1 {[%emt 0:01:00]} Rc6 {[%emt 0:00:38] Black had all chances to win.   Weighted Error Value: White=0.30/Black=0.31} 1/2-1/2

[Event "European Women-ch 2023"]
[Site "Petrovac"]
[Date "2023.03.18"]
[Round "1.1"]
[White "Kiolbasa, Oliwia"]
[Black "Hrescak, Ivana"]
[Result "1-0"]
[ECO "B72"]
[WhiteElo "2406"]
[BlackElo "2127"]
[Annotator "TA"]
[PlyCount "90"]
[EventDate "2023.03.15"]
[EventType "swiss"]
[EventCountry "MNE"]
[SourceTitle "playchess.com"]
[Source "ChessBase"]
[SourceQuality "1"]
[TimeControl "40/5400+30:1800+30"]

{[%evp 10,90,47,43,31,37,54,39,48,33,64,41,79,74,102,44,65,70,64,51,58,58,64,59,103,93,104,91,109,118,129,120,146,130,152,147,172,143,153,108,166,166,166,166,199,200,218,218,218,214,218,218,205,218,217,212,187,135,191,183,190,188,164,162,1678,1389,2273,2178,29973,29974,29972,29970,29979,29980,29980,29981,29981,29982,29982,29983,29984,29985,29985]} 1. e4 {[%emt 0:00:04]} c5 {[%emt 0:00:09]} 2. Nf3 {[%emt 0:00:11]} d6 {[%emt 0:00:15]} 3. d4 {[%emt 0:00:09]} cxd4 {[%emt 0:00:04]} 4. Nxd4 {[%emt 0:00:10]} Nf6 {[%emt 0:00:27]} 5. Nc3 {[%emt 0:00:13]} g6 {[%emt 0:00:11]} 6. Be3 {[%emt 0:00:21]} Nc6 {[%emt 0:00:11] B72: Sicilian Dragon: 6 Be3, lines with h3+Bc4 and sidelines.} 7. f3 {[%emt 0:01:25] Prevents Ng4} h5 {[%emt 0:00:12]} 8. Be2 {[%emt 0:13:20] [#]} a6 $146 {[%emt 0:03:48] White is slightly better.} ({Predecessor:} 8... Bg7 9. Qd2 Bd7 10. O-O O-O 11. Nd5 Rc8 12. c4 Nxd5 13. exd5 Nxd4 14. Bxd4 Bxd4+ 15. Qxd4 {½-½ Schroeder,J (2568)-Mons,L (2530) Hobbits Invitational blitz 2021 (1.6)}) 9. O-O {[%emt 0:04:59]} Bd7 {[%emt 0:04:13]} 10. a4 {[%emt 0:08:21]} h4 {[%emt 0:08:11]} 11. Nd5 {[%emt 0:13:04]} Rc8 {[%emt 0:20:05]} 12. Nb3 {[%emt 0:15:39] White has more active pieces.} (12. Nxf6+ $16 exf6 13. Nxc6 Rxc6 14. f4) 12... Be6 {[%emt 0:04:30]} 13. Bb6 {[%emt 0:02:56]} Qd7 {[%emt 0:02:53]} 14. Nxf6+ {[%emt 0:00:14]} exf6 {[%emt 0:00:08]} 15. f4 $36 {[%emt 0:00:13][%mdl 2048] White fights for an advantage.} h3 {[%emt 0:05:47]} 16. g3 {[%emt 0:02:05]} f5 {[%emt 0:01:11]} 17. exf5 {[%emt 0:01:58]} gxf5 {[%emt 0:07:41]} 18. Nd4 {[%emt 0:06:15]} Nxd4 {[%emt 0:03:26]} 19. Bxd4 {[%emt 0:00:07]} Rg8 {[%emt 0:01:34]} 20. Bf3 {[%emt 0:00:41]} Be7 {[%emt 0:08:09]} 21. Rf2 {[%emt 0:03:20]} d5 {[%emt 0:04:46]} 22. c3 {[%emt 0:03:18]} Bc5 {[%emt 0:07:05]} 23. Bxc5 {[%emt 0:02:47]} Rxc5 {[%emt 0:00:07]} 24. Re2 {[%emt 0:00:13]} Kf8 {[%emt 0:03:13]} (24... Kd8 $16 {is a better defense.}) 25. Qd4 $18 {[%emt 0:01:37]} Rc4 {[%emt 0:03:21]} 26. Qf6 {[%emt 0:00:08]} Rg6 {[%emt 0:05:26]} 27. Qh8+ {[%emt 0:00:50]} Ke7 {[%emt 0:00:11]} 28. Rd1 {[%emt 0:10:50][%cal Ba1d1,Bd1d5,Bd5e5][%mdl 32]} (28. Qxh3 Rxf4 29. Kf2 Rc4 30. Qxf5 d4) 28... Rxf4 {[%emt 0:02:37]} 29. Rxd5 {[%emt 0:03:32]} Qe8 {[%emt 0:00:10]} 30. Qxe8+ {[%emt 0:03:03]} ({Don't play} 30. Qxh3 $6 Kf6 $16) 30... Kxe8 {[%emt 0:00:01]} 31. Bh5 {[%emt 0:00:12]} Re4 {[%emt 0:02:01]} 32. Rxe4 {[%emt 0:00:36]} fxe4 {[%emt 0:00:05][%mdl 4096] Endgame KRB-KRB} 33. Re5 {[%emt 0:00:06]} ({White should try} 33. Bxg6 $18 Bxd5 34. Bf5) 33... Rh6 {[%emt 0:02:25] [#]} (33... Rf6 $16 34. Rxe4 Kd8) 34. Bg4 $1 {[%emt 0:02:39]} Kd7 {[%emt 0:02:02]} 35. Rxe4 {[%emt 0:00:06]} Bxg4 36. Rxg4 {[%emt 0:00:02] KR-KR} Rd6 $2 {[%emt 0:01:22] [#]} (36... a5 37. Rd4+ Ke7) 37. Rd4 $1 {[%emt 0:00:37]} Rxd4 {[%emt 0:00:30]} 38. cxd4 {[%emt 0:00:02] Intending Kf2 and mate. KP-KP} Kd6 {[%emt 0:00:29]} 39. Kf2 {[%emt 0:00:05] White mates.} Kd5 {[%emt 0:00:18]} 40. Ke3 {[%emt 0:00:00]} f6 {[%emt 0:00:00]} 41. g4 {[%emt 0:03:47]} b5 {[%emt 0:00:59]} 42. axb5 {[%emt 0:00:20]} axb5 {[%emt 0:00:01]} 43. b3 {[%emt 0:00:46]} Kd6 {[%emt 0:01:13]} 44. Ke4 {[%emt 0:00:08]} b4 {[%emt 0:00:24]} 45. Kf5 {[%emt 0:00:35]} Kd5 {[%emt 0:00:57] Weighted Error Value: White=0.08 (flawless) /Black=0.32} 1-0

[Event "European Women-ch 2023"]
[Site "Petrovac"]
[Date "2023.03.18"]
[Round "1.1"]
[White "Ovod, Evgenija"]
[Black "Ter-Avetisjana, Agnesa Stepania"]
[Result "1-0"]
[ECO "B10"]
[WhiteElo "2305"]
[BlackElo "1974"]
[Annotator "TA"]
[PlyCount "65"]
[EventDate "2023.03.15"]
[EventType "swiss"]
[EventCountry "MNE"]
[SourceTitle "playchess.com"]
[Source "ChessBase"]
[SourceQuality "1"]
[TimeControl "40/5400+30:1800+30"]

{[%evp 9,65,16,36,20,24,12,40,32,41,40,49,18,37,24,33,27,47,33,46,34,35,20,16,18,91,85,95,87,92,106,110,91,185,97,126,77,77,83,79,77,104,103,200,202,312,317,315,289,283,290,844,842,787,814,1044,1020,1020,996]} 1. e4 {[%emt 0:00:02]} c6 {[%emt 0:00:25]} 2. Nf3 {[%emt 0:00:14]} d5 {[%emt 0:00:10]} 3. d3 {[%emt 0:00:05]} Bg4 {[%emt 0:02:22]} 4. h3 {[%emt 0:00:09]} Bxf3 {[%emt 0:00:42]} 5. Qxf3 {[%emt 0:00:06]} e6 {[%emt 0:00:09]} 6. g3 {[%emt 0:00:19] B10: Caro-Kann: 2 d3 and 2 c4.} Nf6 {[%emt 0:00:09]} 7. Bg2 {[%emt 0:00:59]} Be7 {[%emt 0:00:41]} 8. O-O {[%emt 0:01:08] White is slightly better.} O-O {[%emt 0:00:10]} 9. Qe2 {[%emt 0:07:05]} Re8 {[%emt 0:06:03]} 10. Nd2 {[%emt 0:01:31] [#]} (10. e5 $5 Nfd7 $8 11. f4 $14) 10... c5 $146 {[%emt 0:04:25]} ({Predecessor:} 10... Qb6 11. e5 Nfd7 12. Nf3 c5 13. c3 Nc6 14. h4 Qa6 15. Bf4 b5 16. h5 b4 {1-0 Jovanovic,Z (2517)-Nguyen,A (2298) GER CupT Kirchweyhe 2021 (2.2)}) 11. f4 {[%emt 0:03:07]} Nc6 {[%emt 0:02:16]} 12. c3 {[%emt 0:00:30]} Bf8 {[%emt 0:04:28]} 13. g4 {[%emt 0:10:21]} Nd7 {[%emt 0:12:03]} 14. Nf3 {[%emt 0:07:45]} Rc8 {[%emt 0:06:59]} 15. Kh1 {[%emt 0:08:27]} b5 {[%emt 0:03:44]} 16. e5 {[%emt 0:04:25]} g6 {[%emt 0:04:12]} (16... Nb6 $11 {keeps the balance.}) 17. d4 $16 {[%emt 0:05:05]} cxd4 {[%emt 0:06:22]} 18. cxd4 {[%emt 0:00:17]} Qb6 {[%emt 0:01:16]} 19. Be3 {[%emt 0:00:50]} Bh6 {[%emt 0:17:06]} 20. Qf2 {[%emt 0:05:56]} Nb4 {[%emt 0:06:00]} (20... f6 $16) 21. Ne1 {[%emt 0:01:02]} (21. Qh4 $18 Bg7 22. Ng5) 21... Rc7 {[%emt 0:08:32] [#]} 22. a3 {[%emt 0:17:39]} ({White should try} 22. f5 $1 {[%cal Rf5g6]} Bxe3 23. Qxe3) 22... Nc6 {[%emt 0:02:41]} 23. Qh4 $36 {[%emt 0:01:00][%mdl 2048] Black is under strong pressure.} Bg7 {[%emt 0:00:48]} 24. Rc1 {[%emt 0:04:12]} Rec8 {[%emt 0:04:01]} 25. Nd3 {[%emt 0:05:03] White is more active.} Bf8 {[%emt 0:00:01] [#]} (25... Re8 $16) 26. f5 $1 $18 {[%emt 0:04:30]} Ndxe5 {[%emt 0:06:52]} (26... Be7 {might work better.} 27. Qf2 (27. f6 Bf8 $14) 27... Nd8) 27. Nxe5 {[%emt 0:00:13]} Nxe5 {[%emt 0:00:02]} 28. Rxc7 {[%emt 0:00:11]} Rxc7 {[%emt 0:00:03]} 29. fxe6 {[%emt 0:00:13]} ({Weaker is} 29. dxe5 Qxe3 30. fxe6 Qxe5 $15) 29... Nc4 {[%emt 0:01:44]} (29... fxe6 30. dxe5 Qxe3) 30. exf7+ {[%emt 0:00:50] White is clearly winning.} Rxf7 {[%emt 0:00:26]} 31. Bxd5 {[%emt 0:00:43][%mdl 64] Pin} Qb7 {[%emt 0:00:32]} 32. Bxb7 {[%emt 0:00:53] Bd5 would kill now. A strong pair of Bishops.} (32. Rxf7 $2 {perishes.} Qxd5+ 33. Kg1 Qxf7 $19) 32... Rxf1+ {[%emt 0:00:16]} 33. Bg1 {[%emt 0:00:12] Weighted Error Value: White=0.10 (very precise) /Black=0.29 (precise)} 1-0

[Event "European Women-ch 2023"]
[Site "Petrovac"]
[Date "2023.03.18"]
[Round "1.2"]
[White "Toncheva, Nadya"]
[Black "Gunina, Valentina"]
[Result "1/2-1/2"]
[ECO "B15"]
[WhiteElo "2192"]
[BlackElo "2478"]
[Annotator "TA"]
[PlyCount "132"]
[EventDate "2023.03.15"]
[EventType "swiss"]
[EventCountry "MNE"]
[SourceTitle "playchess.com"]
[Source "ChessBase"]
[SourceQuality "1"]
[TimeControl "40/5400+30:1800+30"]

{[%evp 15,132,14,31,16,10,12,10,17,17,7,7,19,18,0,0,0,0,0,0,-9,-8,0,0,-18,-18,-18,-18,-22,-10,-22,-22,-22,-22,-22,-22,-22,-22,-29,-28,-33,-14,-25,-16,-77,-25,-25,-18,-16,0,0,0,0,0,0,0,0,0,-7,-7,-7,-7,-7,-7,-8,-8,-8,-8,-8,0,0,0,0,0,0,0,0,0,0,0,0,0,-24,-24,-29,-29,-29,-28,-208,-45,-45,-30,-29966,-4789,-6789,-8,-8,-8,-8,-8,-8,-8,-8,-8,-8,-8,-8,-8,-8,-8,-8,-8,-8,-8,-8,-8,-8,0,-8,-8]} 1. e4 {[%emt 0:00:04]} c6 {[%emt 0:00:21]} 2. d4 {[%emt 0:00:05]} d5 {[%emt 0:00:06]} 3. Nc3 {[%emt 0:00:05]} dxe4 {[%emt 0:00:07]} 4. Nxe4 {[%emt 0:00:03]} Nf6 {[%emt 0:00:08]} 5. Nxf6+ {[%emt 0:00:04]} exf6 {[%emt 0:00:08]} 6. c3 {[%emt 0:00:04]} Bd6 {[%emt 0:00:08]} 7. Bd3 {[%emt 0:00:06]} O-O {[%emt 0:00:26]} 8. Ne2 {[%emt 0:00:04]} Re8 {[%emt 0:00:07]} 9. O-O {[%emt 0:00:09] B15: Caro-Kann: 3 Nc3: 3...g6 and 3...dxe4 4 Nxe4 Nf6 5 Nxf6+ exf6.} (9. Qc2 $5 {[%cal Rd3h7]}) 9... Na6 {[%emt 0:00:25]} 10. Bf4 {[%emt 0:00:23]} Nc7 {[%emt 0:01:32]} 11. Qd2 {[%emt 0:00:13]} Bf8 {[%emt 0:07:37]} 12. Rfe1 {[%emt 0:04:32]} Nd5 {[%emt 0:11:50]} 13. Bg3 {[%emt 0:01:22] [#]} g6 $146 {[%emt 0:00:31]} ({Predecessor:} 13... Ne7 14. Qc2 g6 15. Rad1 Bf5 16. Bf4 Bxd3 17. Qxd3 Nd5 18. Bd2 b5 19. Qf3 Qd7 {½-½ Willow,J (2396)-Harvey,M (2440) London Wood Green 2021 (7)}) 14. Nf4 {[%emt 0:09:05]} Nxf4 {[%emt 0:02:09]} 15. Qxf4 {[%emt 0:04:16]} Rxe1+ {[%emt 0:01:21]} 16. Rxe1 {[%emt 0:00:11]} Be6 {[%emt 0:00:15]} 17. Bb1 {[%emt 0:10:19]} a5 {[%emt 0:02:18]} 18. h4 {[%emt 0:02:58]} f5 {[%emt 0:00:53]} 19. Qc7 {[%emt 0:01:20]} Qxc7 {[%emt 0:01:35]} 20. Bxc7 {[%emt 0:00:05]} b5 {[%emt 0:07:48]} 21. Bd3 {[%emt 0:12:16]} h5 {[%emt 0:03:40]} 22. Bf1 {[%emt 0:04:08]} Bxa2 {[%emt 0:16:11]} 23. Ra1 $1 {[%emt 0:00:18]} Bd5 {[%emt 0:00:08]} 24. Rxa5 {[%emt 0:00:18]} Rxa5 {[%emt 0:00:38]} 25. Bxa5 $11 {[%emt 0:00:06][%mdl 4096] Endgame KBB-KBB} Bh6 {[%emt 0:00:05]} 26. Bb4 $1 {[%emt 0:02:04]} Bc1 {[%emt 0:01:05]} 27. Ba3 {[%emt 0:00:08]} f6 {[%emt 0:00:32]} 28. Bd3 {[%emt 0:08:11]} Kf7 {[%emt 0:00:50]} 29. f3 {[%emt 0:01:35]} (29. Bc2 $11 {remains equal.}) 29... Be6 {[%emt 0:11:08]} (29... Bc4 $17 30. Bc2 Be3+ 31. Kh2 Ke6) 30. Kf2 {[%emt 0:04:05]} g5 {[%emt 0:00:32]} 31. d5 {[%emt 0:04:13]} Bxd5 {[%emt 0:00:45] Hoping for ...Be6.} 32. hxg5 {[%emt 0:00:54]} Be6 {[%emt 0:03:30]} 33. gxf6 {[%emt 0:00:52]} Kxf6 {[%emt 0:00:08]} 34. Kg3 {[%emt 0:06:09]} Bd5 {[%emt 0:01:41]} 35. Kh4 {[%emt 0:01:30]} Bf7 {[%emt 0:06:31]} 36. g3 {[%emt 0:03:01]} f4 {[%emt 0:02:43]} 37. g4 {[%emt 0:07:26]} hxg4 {[%emt 0:00:36]} 38. Kxg4 {[%emt 0:00:06]} Be6+ {[%emt 0:00:24]} 39. Kh5 {[%emt 0:02:06]} Bf5 {[%emt 0:09:42]} 40. Bf1 {[%emt 0:00:00]} Bg6+ {[%emt 0:00:00]} 41. Kg4 {[%emt 0:02:40]} Bf7 {[%emt 0:02:01]} 42. Bd3 {[%emt 0:00:42]} Bd5 {[%emt 0:01:19]} 43. Be2 {[%emt 0:04:16]} Ke6 {[%emt 0:06:44]} 44. Kg5 {[%emt 0:02:12]} Kd7 {[%emt 0:00:12]} 45. Kf6 {[%emt 0:01:18]} Kc7 {[%emt 0:00:54]} 46. Ke7 {[%emt 0:01:45]} Bb3 {[%emt 0:05:17]} 47. Bd3 {[%emt 0:02:17]} Be3 {[%emt 0:05:49]} 48. Bf5 {[%emt 0:06:27]} Bd5 {[%emt 0:01:04]} 49. Bd6+ {[%emt 0:01:14]} Kb6 {[%emt 0:00:46]} 50. Bg4 {[%emt 0:00:07]} Ka5 {[%emt 0:00:24] aiming for ...Ka4.} 51. Be5 $2 {[%emt 0:09:30] [#]} (51. Kd7 $11) 51... Ka4 $2 {[%emt 0:00:51]} (51... Bc1 $1 $19 {And now ...Ka4 would win.} 52. b3 Bxb3) 52. Kd6 $15 {[%emt 0:00:49]} Kb3 {[%emt 0:01:49]} 53. Be6 $2 {[%emt 0:03:19][%mdl 8192]} (53. Kc7 $11) 53... Bxe6 {[%emt 0:00:37]} (53... Kxb2 $2 54. c4+ Kc1 55. cxd5 $18) 54. Kxe6 {[%emt 0:00:16] KB-KB} c5 $2 {[%emt 0:05:00]} ({Better is} 54... Kxb2 $19 55. Kd7 Kb3 56. Kxc6 Kc4) 55. Kd5 $1 $11 {[%emt 0:01:56] The position is equal.} c4 {[%emt 0:01:02]} 56. Kc6 {[%emt 0:00:11]} Kxb2 {[%emt 0:04:10][%cal Ob5b4] [#] ( -> ...b4!)} 57. Kxb5 {[%emt 0:00:07]} Kb3 {[%emt 0:00:05]} 58. Bf6 {[%emt 0:02:22]} Bd2 {[%emt 0:00:38]} 59. Be5 {[%emt 0:00:04]} Bxc3 {[%emt 0:00:33]} 60. Bxf4 {[%emt 0:00:06]} Be1 {[%emt 0:02:16]} 61. Be5 {[%emt 0:00:14]} Bf2 {[%emt 0:01:24]} 62. Bg7 {[%emt 0:00:23]} Bg3 {[%emt 0:00:28]} 63. Bd4 {[%emt 0:00:15]} Bf4 {[%emt 0:00:30]} 64. Bg7 {[%emt 0:00:12]} Bd2 {[%emt 0:00:34]} 65. Be5 {[%emt 0:00:27]} Bc3 {[%emt 0:00:44]} 66. f4 {[%emt 0:00:50]} Bxe5 {[%emt 0:00:05][%mdl 64] Remove Defender.   Weighted Error Value: White=0.35/Black=0.22 (precise)} 1/2-1/2